Cogmind - Beta 17.1 @@@ ROGUE MODE // 2026.09.02 @ 18:51:36 Player: 7604 Result: Destroyed by CA-LFC(R) with Subdweller Laser Performance ------------- Evolutions (3) 1500 Regions Visited (7) 1400 Robots Destroyed (121) 605 Value Destroyed (2869) 2869 Prototype IDs (10) 200 Alien Tech Used (0) 0 Bonus (14481) 14481 TOTAL SCORE: 21055 Bonus ------- High Alert Combat Kills 33 Follower Combat Kills 151 Prayed to X0-1V1 5000 Major X0-1V1 Interference 9550 Friendly Fire -253 Cogmind --------- Core Integrity 0/1000 Matter 93/300 Energy 100/100 System Corruption 41% Temperature Cool (6) Movement Core (250) Ox4 Location -7/Recycling Parts ------- > --- POWER (2) -------- (None) > --- PROPULSION (4) --- (None) > --- UTILITY (7) ------ Medium Storage Unit Improved Signal Interpreter > --- WEAPON (1) ------- Mini Assault Cannon > --- INVENTORY (10) --- Heavy Deuterium Engine Enhanced Nuclear Core Small Storage Unit Precision Assault Rifle Precision Assault Rifle Precision Assault Rifle Precision Assault Rifle Precision Assault Rifle Improved Datajack Peak State ------------ > --- POWER ------------ Ion Engine > --- PROPULSION ------- Light Treads Wheel Compact Wheel Compact Wheel > --- UTILITY ---------- Improved Cooling System Huge Storage Unit Improved Signal Interpreter Heavy Armor Plating X0-1V1's Piety Tracker > --- WEAPON ----------- Coil Gun Spear > --- INVENTORY -------- Light Treads Light Treads Airjet Gravmag System Improved Heat Sink Improved Cooling System Improved Cooling System Improved Sensor Array Experimental Sensor Array Seismic Detector ECM Suite Hardened Light Armor Plating Improved Light Armor Plating Improved Medium Armor Plating Spread Laser Spread Laser Spread Laser Heavy Particle Cannon Ion Cannon Improved Heavy Machine Gun Light Cannon Light Cannon Battle Cannon Gauss Cannon Datajack [Rating: 48] Favorites ----------- Power Improved Ion Engine Engine Improved Ion Engine Power Core Light Nuclear Core Propulsion Light Treads Treads Light Treads Wheel Compact Wheel Hover Unit Gravmag System Utility Huge Storage Unit Device Seismic Detector Storage Huge Storage Unit Processor Improved Signal Interpreter Protection Medium Armor Plating Weapon Spread Laser Energy Gun Spread Laser Ballistic Gun Assault Rifle Ballistic Cannon Light Cannon Launcher Subdweller Shrapnel Launcher Special Weapon Mining Laser Impact Weapon Flail Piercing Weapon Spear Special Melee Weapon Datajack Build | -11 -10 -10 -10 -8 -7 -7 -7 ------- Run | Yrd Mat Min Sub Mat Fac Sto Rec Slots Evolved 6 | . . . . 4 2 . . Power . | . . . . . . . . Propulsion 3 | . . . . 3 . . . Utility 3 | . . . . 1 2 . . Weapon . | . . . . . . . . Parts Attached 77 | 7 11 5 7 4 30 12 1 Power 11 | 1 2 1 1 . 3 3 . Engine 6 | 1 2 . 1 . . 2 . Core 5 | . . 1 . . 3 1 . Reactor . | . . . . . . . . Propulsion 19 | 2 1 1 1 2 7 5 . Treads 10 | 2 1 1 1 2 1 2 . Leg . | . . . . . . . . Wheel 7 | . . . . . 6 1 . Hover 2 | . . . . . . 2 . Flight . | . . . . . . . . Utility 27 | 2 4 1 2 2 13 2 1 Device 14 | 1 2 1 1 1 7 1 . Storage 4 | 1 1 . . . . 1 1 Processor 1 | . . . . . 1 . . Hackware . | . . . . . . . . Protection 8 | . 1 . 1 1 5 . . Artifact . | . . . . . . . . Weapon 20 | 2 4 2 3 . 7 2 . Energy Gun 6 | 1 . 2 1 . 2 . . Energy Cannon . | . . . . . . . . Ballistic Gun 4 | 1 . . . . 2 1 . Ballistic Cannon 4 | . 2 . . . 1 1 . Launcher 1 | . . . 1 . . . . Special Weapon 1 | . 1 . . . . . . Impact Weapon 1 | . . . 1 . . . . Slashing Weapon . | . . . . . . . . Piercing Weapon 2 | . . . . . 2 . . Special Melee Weapon 1 | . 1 . . . . . . Unidentified Prototypes 9 | . . . 1 1 3 4 . Corrupted Parts 1 | . . . . . . 1 . System Corruption 10 | . . . . . . 10 . Parts Lost 42 | . . 3 2 2 22 10 3 Power 7 | . . . 1 . 4 1 1 Propulsion 18 | . . 1 1 1 10 3 2 Utility 14 | . . 1 . 1 8 4 . Weapon 3 | . . 1 . . . 2 . Highest Loss Streak 8 | . . 3 1 1 6 8 3 To Critical Strikes . | . . . . . . . . Average Backups 18 | 1 9 20 23 23 23 5 8 Power 2 | . 1 3 2 2 1 1 2 Propulsion 1 | . . . . 1 2 . . Utility 5 | . 2 5 7 6 7 . . Weapon 9 | . 3 9 11 13 11 3 5 Tool/Special . | . . . . . . . . Unused Backups 19 | . 1 . 2 3 3 4 6 Power 2 | . . . 1 . . . 1 Propulsion . | . . . . . . . . Utility 4 | . 1 . . 1 1 1 . Weapon 12 | . . . 1 2 2 3 4 Tool/Special 1 | . . . . . . . 1 Average Slot Usage (%) 92 | . 100 99 97 77 83 47 40 Engine 7 | . 14 2 8 8 4 1 6 Core 4 | . . 11 4 . 2 . . Treads 24 | . 28 27 27 24 17 7 5 Wheel 1 | . . . . . 6 3 7 Device 14 | . 13 13 13 18 17 11 . Storage 11 | . 14 14 13 8 7 3 7 Processor 1 | . . . . . 4 7 7 Protection 2 | . . . . . 8 . . Energy Gun 12 | . 3 23 22 . 5 . . Ballistic Gun 1 | . 3 1 1 . . . . Ballistic Cannon 5 | . 20 3 . . . 4 7 Impact Weapon 1 | . . . 2 8 1 . . Peak Build Rating 48 | 7 10 16 16 24 48 38 25 Average Rating 18 | 6 8 13 15 20 35 23 23 On Entrance 14 | . 7 10 15 15 24 22 24 Avg Prop Armor Cover (%) 15 | . . . . . 4 20 14 Naked Turns . | . . . . . . . . Heaviest Build 117 | 13 96 94 99 106 117 16 19 Greatest Support 80 | 40 40 40 40 80 80 40 28 Greatest Overweight (x) 28 | . 2 2 4 2 28 3 . Average Overweight (x) 1 | . 1 2 2 1 1 . . Largest Inventory Capacity 25 | 8 25 25 25 25 25 25 10 Average Capacity 22 | 7 19 25 25 25 25 6 8 Most Carried 25 | 4 17 23 25 25 25 20 9 Average Carried 19 | 1 10 20 23 23 24 5 8 Final Capacity 25 | 8 25 25 25 25 25 8 10 Final Carried 25 | 4 17 23 23 25 21 8 9 Class Distribution -------------------- 92% | Mutant 3% | Scavenger-Mutant Dominant Class ---------------- Mutant | -10/Materials Mutant | -10/Mines Mutant | -10/Subcaves Mutant | -8/Materials Mutant | -7/Factory Mutant | -7/Storage Mutant | -7/Recycling Resources | -11 -10 -10 -10 -8 -7 -7 -7 ----------- Run | Yrd Mat Min Sub Mat Fac Sto Rec Matter Collected 2648 | 315 503 183 282 477 653 233 2 Remotely . | . . . . . . . . Salvage Created 2740 | 142 679 250 206 233 973 257 . Parts 229 | 18 59 14 28 20 77 13 . Haulers Intercepted 3 | . 2 . . . 1 . . Recyclers Shooed . | . . . . . . . . Parts Field Recycled . | . . . . . . . . Retrieved Matter . | . . . . . . . . Parts Self-Destructed 46 | . . . 46 . . . . Prevented . | . . . . . . . . Parts Restored . | . . . . . . . . Kills | -11 -10 -10 -10 -8 -7 -7 -7 ------- Run | Yrd Mat Min Sub Mat Fac Sto Rec Combat Hostiles Destroyed 81 | . 23 10 11 14 18 5 . Melee 10 | . . . 1 . 9 . . Guns 23 | . 6 4 5 . 8 . . Cannons 29 | . 17 6 . . 1 5 . AOE 19 | . . . 5 14 . . . Classes Destroyed 16 | 1 5 . 2 4 4 . . Worker 3 | . . . . 1 2 . . Builder 11 | . 1 1 . 1 7 1 . Tunneler 7 | 7 . . . . . . . Hauler 3 | . 2 . . . 1 . . Recycler 5 | . . . . 1 3 1 . Turret 2 | . . . 2 . . . . Watcher 7 | . 3 . . 1 3 . . Swarmer 35 | . 9 3 9 7 7 . . Cutter 2 | . . . . . 2 . . Grunt 30 | . 14 7 . 5 2 2 . Brawler 1 | . . . . . 1 . . Protector 1 | . . . . 1 . . . Sentry 3 | . . . . . 1 2 . Programmer 6 | . . . . . 5 1 . Heavy 1 | . . . . 1 . . . Subdweller 4 | . . . 4 . . . . Best Kill Streak 11 | 2 4 2 5 11 4 4 . Combat Bots Only 7 | . 3 2 5 7 4 3 . Max Kills in Single Turn 5 | 1 1 1 3 5 2 1 . Gunslinging 1 | . . . 1 . . . . Exploded 5 | . . . 3 5 . . . Melee 1 | . . . 1 . 1 . . Uniques/NPCs Destroyed . | . . . . . . . . Combat | -11 -10 -10 -10 -8 -7 -7 -7 -------- Run | Yrd Mat Min Sub Mat Fac Sto Rec Hostile Shots Fired 686 | . 67 46 101 38 249 172 13 Missed 191 | . 21 9 39 12 64 44 2 Hits 495 | . 46 37 62 26 185 128 11 Melee 13 | . . . . . 13 . . Projectile 482 | . 46 37 62 26 172 128 11 AOE 1 | . . . . . 1 . . Critical Strikes 11 | . . 3 1 . 6 1 . Damage Taken 5992 | . 466 418 473 474 2641 1300 220 Core 1180 | . 22 50 57 50 530 393 78 Absorbed by Shields . | . . . . . . . . Core Remaining (%) 94 | 100 . . 90 94 . . . Volleys Fired 196 | 15 56 20 11 18 25 36 15 Largest 2 | 2 2 2 2 1 2 1 1 Hottest 145 | 70 100 130 130 40 145 40 40 Shots Fired 313 | 30 111 40 20 18 47 33 14 Gun 156 | 30 48 17 15 . 46 . . Cannon 133 | . 62 23 . . 1 33 14 Launcher 23 | . . . 5 18 . . . Special 1 | . 1 . . . . . . Kinetic 202 | 15 86 28 7 18 1 33 14 Thermal 111 | 15 25 12 13 . 46 . . Explosive . | . . . . . . . . Electromagnetic . | . . . . . . . . Robot Hit Streak 18 | 4 9 7 3 8 18 7 5 Robot Miss Streak 5 | 3 2 3 5 1 4 2 3 Penetration Max . | . . . . . . . . Secondary Targets 3 | . 1 . 1 . 1 . . Max Gunslinging Chain 1 | . 1 . 1 . 1 . . Shots Hit Robots 251 | 15 66 26 15 9 80 32 8 Core Hits 233 | 7 36 28 26 37 86 12 1 Critical Kills . | . . . . . . . . Critical Parts Destroyed . | . . . . . . . . Critical Strikes 17 | 3 3 2 . . 4 4 1 Burn 5 | 3 2 . . . . . . Blast 7 | . 1 2 . . 1 2 1 Impale 5 | . . . . . 3 2 . Melee Attacks 97 | . 3 . 3 . 81 10 . Impact 8 | . . . 3 . 5 . . Slashing . | . . . . . . . . Piercing 86 | . . . . . 76 10 . Sneak Attacks 15 | . 3 . . . 9 3 . Combat Hostiles . | . . . . . . . . Follow-up Attacks . | . . . . . . . . Damage Inflicted 7776 | 202 992 452 546 2142 2186 1050 206 Guns 1660 | 202 361 218 142 . 737 . . Cannons 1769 | . 618 234 . . 33 678 206 Explosions 2494 | . . . 352 2142 . . . Melee 1838 | . . . 52 . 1414 372 . Ramming 15 | . 13 . . . 2 . . Kinetic 4527 | 64 777 275 352 2142 33 678 206 Thermal 1396 | 138 202 177 142 . 737 . . Explosive . | . . . . . . . . Electromagnetic . | . . . . . . . . Impact 52 | . . . 52 . . . . Slashing . | . . . . . . . . Piercing 1786 | . . . . . 1414 372 . Highest Corruption 41 | . . . 27 9 7 41 41 Average Corruption 11 | . . . 14 9 1 25 41 Corruption Purged . | . . . . . . . . Corruption Blocked . | . . . . . . . . Effects 70 | . . . 20 5 14 25 6 Message Errors 18 | . . . 7 2 1 8 . Matter Fused 15 | . . . 4 1 4 4 2 Heat Flow Errors 6 | . . . . 1 3 . 2 Energy Discharges 7 | . . . 3 1 2 1 . Parts Rejected 2 | . . . . . 1 1 . Parts Fused 1 | . . . . . . 1 . Data Loss (minor) 4 | . . . 1 . . 2 1 Data Loss (major) 6 | . . . 2 . 2 2 . Misfires 3 | . . . 1 . 1 1 . Alerts 2 | . . . 2 . . . . Misdirections 1 | . . . . . . 1 . Weapon Failures 5 | . . . . . . 4 1 Overload Shots . | . . . . . . . . Overflow Damage 296 | . 15 . . 66 125 90 . Projectiles 29 | . 15 . . . . 14 . Explosions 66 | . . . . 66 . . . Melee 201 | . . . . . 125 76 . Knockbacks 13 | . 7 . . . . 3 3 Impact . | . . . . . . . . Kinetic 13 | . 7 . . . . 3 3 Secondary . | . . . . . . . . Self-Inflicted Damage 25 | . . . . 25 . . . Shots 1 | . . . . 1 . . . Rammed 6 | . 5 1 . . . . . Targets Rammed 8 | . 6 1 . . 1 . . Kicked . | . . . . . . . . Crushed 2 | . 1 . . . 1 . . Highest Temperature 297 | 45 90 200 96 129 297 13 258 Average Temperature 60 | 14 25 70 50 59 110 11 106 Received Heat Transfer 1749 | . 174 264 120 153 465 507 66 Effects 1 | . . . . . 1 . . Energy Bleed 1 | . . . . . 1 . . Siege Activations . | . . . . . . . . Martial Activations . | . . . . . . . . Shielding Activations . | . . . . . . . . Robots Disrupted . | . . . . . . . . Combat Hostiles . | . . . . . . . . Robots Corrupted . | . . . . . . . . Combat Hostiles . | . . . . . . . . Parts Fried . | . . . . . . . . Impact Corruptions . | . . . . . . . . Robots Melted . | . . . . . . . . Combat Hostiles . | . . . . . . . . Parts Melted 2 | 1 . 1 . . . . . Heat Transferred 2689 | 629 740 215 170 . 935 . . Parts Sabotaged . | . . . . . . . . Parts Stolen . | . . . . . . . . Parts Stripped . | . . . . . . . . Power Chain Reactions . | . . . . . . . . Alert | -11 -10 -10 -10 -8 -7 -7 -7 ------- Run | Yrd Mat Min Sub Mat Fac Sto Rec Maximum Alert Level 2 | . 1 . . 2 1 . . Low Security (%) 79 | 100 43 100 . 10 99 100 100 Level 1 19 | . 56 . . 64 . . . Level 2 1 | . . . . 25 . . . Level 3 . | . . . . . . . . Level 4 . | . . . . . . . . Level 5 . | . . . . . . . . High Security . | . . . . . . . . Max Security . | . . . . . . . . Peak Influence 458 | 10 267 193 . 458 206 62 42 Initial 196 | . . 83 . 81 196 61 12 Average 90 | . 168 34 . 310 55 34 18 Influence Increases 3068 | 35 732 285 529 562 694 197 34 Destroy 0b10 Robot/C 1820 | . 460 200 340 300 420 100 . Destroy 0b10 Robot/NC 180 | 35 30 5 . 30 70 10 . Destroy Leader 338 | . 100 50 10 42 106 30 . Allied During Kill 16 | . . . 14 . 2 . . Successful Hack 33 | . 13 . . . 12 8 . Select Force Hacks 120 | . 60 . . . 30 . 30 Disable Machine 135 | . 30 15 . 75 15 . . Destroy Structure 126 | . 9 . . 85 24 4 4 Partial Spotted 30 | . . . . 15 15 . . Lose Combat Pursuer 270 | . 30 15 165 15 . 45 . Influence Decreases 3067 | 35 518 499 372 286 991 300 66 Entered New Map 540 | . . 131 . 76 237 75 21 Time Decay 2091 | 35 518 338 332 170 493 165 40 Lost Part 336 | . . 30 20 20 201 60 5 Lost Ally 100 | . . . 20 20 60 . . Squads Dispatched 24 | . 5 1 . 2 11 5 . Investigation 5 | . 2 1 . . 2 . . Extermination 6 | . . . . . 5 1 . Reinforcement 9 | . 3 . . 1 4 1 . Assault 1 | . . . . 1 . . . Garrison 3 | . . . . . . 3 . Intercept . | . . . . . . . . Searches Triggered . | . . . . . . . . Construction Impeded 1 | . . . . . 1 . . Haulers Reinforced 1 | . . . . . . 1 . Active Scanning Responses . | . . . . . . . . Cargo Convoy Interrupts 1 | . . . . . 1 . . Stealth | -11 -10 -10 -10 -8 -7 -7 -7 --------- Run | Yrd Mat Min Sub Mat Fac Sto Rec Distress Signals 8 | . 1 . . . 5 2 . Communications Jammed . | . . . . . . . . Distress Signals . | . . . . . . . . Times Spotted 165 | . 35 12 23 19 53 21 2 Peak Tracking Total 8 | . 4 4 6 8 6 8 1 Tactical Retreats 19 | . 1 1 5 1 9 1 1 ECM-based Alert Blocks 21 | . . . . . 21 . . Traps | -11 -10 -10 -10 -8 -7 -7 -7 ------- Run | Yrd Mat Min Sub Mat Fac Sto Rec Traps Triggered 1 | . . . . . 1 . . Indirectly . | . . . . . . . . Trap Hack Attempts 8 | . 8 . . . . . . Triggered . | . . . . . . . . Disarmed 2 | . 2 . . . . . . Reprogrammed . | . . . . . . . . Reused . | . . . . . . . . Traps Extracted . | . . . . . . . . Installed . | . . . . . . . . Triggered . | . . . . . . . . Machines | -11 -10 -10 -10 -8 -7 -7 -7 ---------- Run | Yrd Mat Min Sub Mat Fac Sto Rec Machines Disabled 13 | . 2 1 4 5 1 . . Max in Single Turn 4 | . 1 1 4 2 1 . . Machines Repaired . | . . . . . . . . Machines Dismantled . | . . . . . . . . Machines Sabotaged . | . . . . . . . . Overloaded Fab Kills . | . . . . . . . . Hacking | -11 -10 -10 -10 -8 -7 -7 -7 --------- Run | Yrd Mat Min Sub Mat Fac Sto Rec Machines Accessed 17 | . 7 . 1 . 4 2 3 Terminals 12 | . 5 . . . 3 2 2 Fabricators . | . . . . . . . . Repair Stations . | . . . . . . . . Recycling Units 4 | . 2 . . . 1 . 1 Scanalyzers . | . . . . . . . . Garrison Access . | . . . . . . . . Total Hacks 40 | . 19 . 4 . 10 2 5 Successful 23 | . 13 . 4 . 3 2 1 Failed 16 | . 5 . . . 7 . 4 Catastrophic 6 | . 1 . . . 3 . 2 Database Lockouts 1 | . 1 . . . . . . Manual 28 | . 15 . . . 8 1 4 Terminals 27 | . 15 . . . 7 2 3 Fabricators . | . . . . . . . . Repair Stations . | . . . . . . . . Recycling Units 9 | . 4 . . . 3 . 2 Scanalyzers . | . . . . . . . . Garrison Access . | . . . . . . . . Terminal Hacks 10 | . 3 . 4 . 1 2 . Record 4 | . . . 4 . . . . Robot Schematic 1 | . 1 . . . . . . Robot Analysis 1 | . 1 . . . . . . Open Door 2 | . . . . . . 2 . Branch Access Points 1 | . . . . . 1 . . Locate Traps 1 | . 1 . . . . . . Fabricator Hacks . | . . . . . . . . Repair Station Hacks . | . . . . . . . . Recycling Unit Hacks 1 | . 1 . . . . . . Retrieve Components 1 | . 1 . . . . . . Scanalyzer . | . . . . . . . . Garrison Access Hacks . | . . . . . . . . Unauthorized Hacks 12 | . 9 . . . 2 . 1 Terminals 8 | . 7 . . . 1 . . Botnet 2 | . 1 . . . 1 . . Operators 1 | . 1 . . . . . . Skim 5 | . 5 . . . . . . Fabricators . | . . . . . . . . Repair Stations . | . . . . . . . . Recycling Units 4 | . 2 . . . 1 . 1 Tunnel 4 | . 2 . . . 1 . 1 Scanalyzers . | . . . . . . . . Garrison Access . | . . . . . . . . Data Cores Recovered . | . . . . . . . . Used . | . . . . . . . . Hacking Detections 14 | . 6 . . . 4 1 3 Full Trace Events 1 | . . . . . 1 . . Feedback Events . | . . . . . . . . Feedback Blocked . | . . . . . . . . Robot Schematics Acquired 1 | . 1 . . . . . . Robots Built . | . . . . . . . . Authchips . | . . . . . . . . Time . | . . . . . . . . Total Robot Build Rating . | . . . . . . . . Part Schematics Acquired . | . . . . . . . . Parts Built . | . . . . . . . . Authchips . | . . . . . . . . Time . | . . . . . . . . Total Part Build Rating . | . . . . . . . . Part Studies Acquired . | . . . . . . . . Parts Repaired . | . . . . . . . . Time . | . . . . . . . . Parts Recycled . | . . . . . . . . Recycled Matter . | . . . . . . . . Retrieved Matter . | . . . . . . . . Retrieved Components 10 | . 10 . . . . . . Parts Scanalyzed . | . . . . . . . . Part Schematics Acquired . | . . . . . . . . Parts Damaged . | . . . . . . . . Bothacking | -11 -10 -10 -10 -8 -7 -7 -7 ------------ Run | Yrd Mat Min Sub Mat Fac Sto Rec Used RIF Installer . | . . . . . . . . Robots Hacked 2 | . 2 . . . . . . Non-combat 2 | . 2 . . . . . . Combat . | . . . . . . . . Robot Hacks Applied 3 | . 3 . . . . . . parse_system 2 | . 2 . . . . . . no_distress 1 | . 1 . . . . . . Relay Couplers Released . | . . . . . . . . Fabnet Peak Effective % . | . . . . . . . . Robots Rewired . | . . . . . . . . Allies Hacked . | . . . . . . . . Hacks Repelled . | . . . . . . . . Allies | -11 -10 -10 -10 -8 -7 -7 -7 -------- Run | Yrd Mat Min Sub Mat Fac Sto Rec Total Allies 8 | . . . 5 . 3 . . Largest Group 3 | . . . 3 1 3 . . Highest-Rated Group 57 | . . . 57 19 36 . . Highest-Rated Ally 19 | . . . 19 19 12 . . Total Orders . | . . . . . . . . Ally Attacks 45 | . . . 24 3 18 . . Total Damage 540 | . . . 304 55 181 . . Kills 9 | . . . 6 2 1 . . Allies Corrupted . | . . . . . . . . Allies Melted . | . . . . . . . . X0-1V1 Amusement Gains 49 | . 19 . . . 10 20 . Average Entertainment 12 | . 18 12 5 8 17 22 14 Good Acts 43 | . 1 2 15 21 4 . . Bad Acts 57 | . . 3 32 8 6 8 . Intel | -11 -10 -10 -10 -8 -7 -7 -7 ------- Run | Yrd Mat Min Sub Mat Fac Sto Rec Active Infowar (turns) 8195 | 238 2256 1839 1444 228 2086 104 . Sensors 1233 | . . . . . 1143 90 . Structural 268 | . . . . . 268 . . Seismic 6920 | 238 2256 1839 1444 228 904 11 . Jamming 39 | . . . . . 39 . . ECM 654 | . . . . . 646 8 . Robot Analysis Total 1 | . 1 . . . . . . Derelict Logs Recovered 2 | . . 1 1 . . . . Drone Launches . | . . . . . . . . Drone Recoveries . | . . . . . . . . Exploration | -11 -10 -10 -10 -8 -7 -7 -7 ------------- Run | Yrd Mat Min Sub Mat Fac Sto Rec Turns Passed 11443 | 358 2379 1951 3386 345 2560 354 110 Spaces Moved 4053 | 187 810 573 1008 119 1096 193 67 Core 8 | 6 . . . . 1 1 . Treads 3368 | 181 810 573 1008 119 648 29 . Legs . | . . . . . . . . Wheels 599 | . . . . . 447 85 67 Hover 78 | . . . . . . 78 . Flight . | . . . . . . . . Fastest Speed 50 | 50 160 320 320 240 110 56 100 Average Speed 247 | 156 250 320 323 244 191 91 100 Slowest Speed 1450 | 160 320 320 480 320 1450 200 100 Overloaded Moves . | . . . . . . . . Propulsion Burnouts . | . . . . . . . . Robots Hopped . | . . . . . . . . Potential Cave-ins . | . . . . . . . . Cave-ins Triggered . | . . . . . . . . Exploration Rate (%) 45 | 7 98 96 65 20 32 33 15 Regions Visited 7 Branch Regions 4 Pre-discovered Areas 6 | . 2 . 2 . 1 . 1 Known Exits Taken 5 | . . 1 1 1 1 1 . Unknown Exits Taken 2 | 1 1 . . . . . . Scrap Searched 5 | . . 2 3 . . . . Spaces Dug 27 | . 1 . 1 . 24 1 . Terrain Destroyed 166 | . 1 . 40 96 24 1 4 Melee 26 | . . . 1 . 24 1 . Projectile 5 | . 1 . . . . . 4 AOE 135 | . . . 39 96 . . . Terrain Rammed . | . . . . . . . . Walls Destroyed . | . . . . . . . . Machines Disabled . | . . . . . . . . Actions | -11 -10 -10 -10 -8 -7 -7 -7 --------- Run | Yrd Mat Min Sub Mat Fac Sto Rec Total 4964 | 220 1032 644 1109 158 1393 313 95 Wait 365 | 7 107 29 64 . 103 44 11 Move 4046 | 186 809 572 1007 118 1095 192 67 Hop . | . . . . . . . . Pick Up 63 | 5 13 8 5 7 18 7 . Fast Attach 32 | 6 . . . 4 9 12 1 Attach 32 | 1 . 3 3 3 18 4 . Detach 12 | . . . 1 1 7 2 1 Swap 78 | . 25 11 13 1 27 1 . Drop 27 | . 5 . 2 6 9 5 . Fire 196 | 15 56 20 11 18 25 36 15 Melee 97 | . 3 . 3 . 81 10 . Ram . | . . . . . . . . Kick . | . . . . . . . . Crush 8 | . 6 1 . . 1 . . Escape Stasis . | . . . . . . . . Rewire . | . . . . . . . . Trap 8 | . 8 . . . . . . Miscellaneous . | . . . . . . . . Route ------- -11/Scrapyard -10/Materials (discovered 6 exits: *Mat x3 / [*Min x2] / Sub) -10/Mines (discovered 3 exits: *Mat x2 / *Sub) -10/Subcaves (discovered 2 exits: *Mat / *Rec) -8/Materials (discovered 3 exits: *Fac x3) -7/Factory (discovered 3 exits: Fac / *Sto / Low) -7/Storage -7/Recycling (discovered 1 exit: Fac) History --------- Turn | Location | Event 3 | -11/Scrapyard | Discovered new exit (range 16) 359 | -11/Scrapyard | Entered Materials 360 | -10/Materials | Build established: Mutant 509 | -10/Materials | Central database locked down 737 | -10/Materials | Discovered new exit (range 15) 741 | -10/Materials | Discovered new exit (range 12) 1428 | -10/Materials | Discovered new exit (range 3) 1889 | -10/Materials | Learned location of 2 exits from Subcaves 1954 | -10/Materials | Identified exit to Materials 2008 | -10/Materials | Learned 4 Recycling zone layouts 2084 | -10/Materials | Learned location of 2 exits from Subcaves 2105 | -10/Materials | Discovered new exit (range 12) 2175 | -10/Materials | Identified exit to Subcaves 2640 | -10/Materials | Prayed at D.C.S.S. Altar Unit 2721 | -10/Materials | Ranged accuracy permanently improved by X0-1V1 (+5%; -50 max core) 2738 | -10/Materials | Entered Mines 2815 | -10/Mines | X0-1V1 vaporized surrounding terrain (radius 15) 2832 | -10/Mines | Met a Derelict shopkeep closing up shop 2882 | -10/Mines | Lost 3 parts (1n1u1w) 3535 | -10/Mines | Learned 2 Materials zone layouts 3738 | -10/Mines | Discovered exit to Subcaves (range 10) 3920 | -10/Mines | Found a damaged Exp. Sensor Array with a note attached 3927 | -10/Mines | Found Prototype Device 4689 | -10/Mines | Entered Subcaves 4690 | -10/Subcaves | Approached by a straggling Scientist 4690 | -10/Subcaves | Identified exit to Materials 4690 | -10/Subcaves | Identified exit to Recycling 5300 | -10/Subcaves | Shifting Twisted Machinery released Battle Cannon 5301 | -10/Subcaves | Shifting Twisted Machinery released Flamer 5324 | -10/Subcaves | Visited Clippyterm 5334 | -10/Subcaves | Learned Factory stockpile data 5334 | -10/Subcaves | Learned Factory garrison access intel 6081 | -10/Subcaves | A swath of the cavern ceiling suddenly collapsed 6176 | -10/Subcaves | Visited triangular shrine 6195 | -10/Subcaves | Found Prototype Device 6196 | -10/Subcaves | Identified V3-11A's Pendant 6201 | -10/Subcaves | Befriended Subdweller 6366 | -10/Subcaves | Befriended Subdweller 6901 | -10/Subcaves | Befriended Subdweller 6901 | -10/Subcaves | Befriended Subdweller 7129 | -10/Subcaves | Learned location of Zion (-7) 7129 | -10/Subcaves | Met a Zionite searching for "candidates" 7159 | -10/Subcaves | A swath of the cavern ceiling suddenly collapsed 7367 | -10/Subcaves | X0-1V1 caused items to flee you 7372 | -10/Subcaves | System corruption reached 10% 7435 | -10/Subcaves | X0-1V1 rewrote 9L-1IS(R) IFF filter 7436 | -10/Subcaves | Befriended Subdweller 7440 | -10/Subcaves | X0-1V1 tapped a No Entrance sign 7584 | -10/Subcaves | X0-1V1 sent hostile G-34 Mercenary (x4) 7606 | -10/Subcaves | Core integrity restored by X0-1V1 (+52) 7632 | -10/Subcaves | Utility slot count permanently improved by X0-1V1 (+1) 7648 | -10/Subcaves | X0-1V1 activates XOMVISION 7750 | -10/Subcaves | X0-1V1 rewrote 9L-1IS(R) IFF filter 7751 | -10/Subcaves | Befriended Subdweller 7831 | -10/Subcaves | Shifting Twisted Machinery released Piercing Trap 7843 | -10/Subcaves | X0-1V1 sent hostile S-10 Pest (x5) 7890 | -10/Subcaves | Core integrity restored by X0-1V1 (+36) 7903 | -10/Subcaves | Shifting Twisted Machinery released Sub. Laser 7940 | -10/Subcaves | Shifting Twisted Machinery released Shrapnel Trap 7941 | -10/Subcaves | Befriended Subdweller 8010 | -10/Subcaves | Items stopped fleeing you 8022 | -10/Subcaves | X0-1V1 mutated your Propulsion slot to Power slot 8031 | -10/Subcaves | Learned location of Mines (-10) 8075 | -10/Subcaves | Entered Materials 8075 | -8/Materials | Accompanied by 1 ally 8075 | -8/Materials | Evolved 4 slots: Propulsion x3, Utility x1 8076 | -8/Materials | Identified exit to Factory 8087 | -8/Materials | X0-1V1 revealed exit location to -7/Factory 8105 | -8/Materials | X0-1V1 sent you into danger 8131 | -8/Materials | Destroyed 7 combat bots 8151 | -8/Materials | Core integrity permanently improved by X0-1V1 (+350) 8168 | -8/Materials | X0-1V1 sent you to a vault 8204 | -8/Materials | X0-1V1 revealed exit location to -7/Factory 8208 | -8/Materials | X0-1V1 foreshadows a heat wave 8255 | -8/Materials | X0-1V1 released a cloud of subatomizers 8355 | -8/Materials | Destroyed 7 combat bots 8420 | -8/Materials | Entered Factory 8420 | -7/Factory | Evolved 2 slots: Utility x2 8422 | -7/Factory | Loaded intel: 4 garrison access locations 9431 | -7/Factory | Lost 3 parts (1n2u) 9494 | -7/Factory | Discovered new exit (range 13) 9523 | -7/Factory | Identified exit to Lower Caves 9899 | -7/Factory | Identified exit to Storage 9962 | -7/Factory | X0-1V1 activates XOMVISION 10111 | -7/Factory | Cargo convoy interrupted 10507 | -7/Factory | X0-1V1 mutated your Weapon slot to Utility slot 10514 | -7/Factory | X0-1V1 sent you to a vault 10569 | -7/Factory | Build established: Scavenger-Mutant 10572 | -7/Factory | Lost 3 allies 10630 | -7/Factory | X0-1V1 tapped a No Entrance sign 10767 | -7/Factory | Identified exit to Factory 10767 | -7/Factory | X0-1V1 revealed exit location to -6/Factory 10937 | -7/Factory | Lost 4 parts (1p1n2u) 10976 | -7/Factory | Core integrity fell below 50% 10980 | -7/Factory | Entered Storage 10994 | -7/Storage | Identified Exp. Sensor Array 11009 | -7/Storage | Lost 6 parts (5n1u) 11035 | -7/Storage | Sensors blinded by X0-1V1 11059 | -7/Storage | System corruption reached 10% 11090 | -7/Storage | Garrison activated, responded to threat 11120 | -7/Storage | Core integrity fell below 20% 11137 | -7/Storage | System corruption reached 30% 11161 | -7/Storage | Lost 8 parts (1p2n3u2w) 11290 | -7/Storage | X0-1V1 sent you into danger 11330 | -7/Storage | Used back door to open Recycling access 11330 | -7/Storage | Discovered exit to Recycling (range 5) 11334 | -7/Storage | Entered Recycling 11335 | -7/Recycling | Identified exit to Factory 11393 | -7/Recycling | Build established: Mutant 11444 | -7/Recycling | Destroyed by CA-LFC(R) with Subdweller Laser Last Messages --------------- DISCOVERED[-1/Command] 11347_ System corrupted: Matter fused (-10). 11355_ Connecting with Terminal... 11379_ System corrupted: Component data lost. 11382_ BD-CM9(R) Sub. Machine Gun blasted off. X0-1V1's Piety Tracker suddenly appears amidst shimmering waves of color. 11387_ Acquired 2 matter. 11398_ System corrupted: Heat flow error (+207). 11401_ Acquired Med. Storage Unit. 11413_ System corrupted: Heat flow error (+286). 11420_ CA-LFC(R) knocked back. 11423_ Lgt. Treads destroyed. 11428_ System corrupted: Mni. Assault Cannon jammed. 11430_ System corrupted: Matter fused (-5). 11431_ Lgt. Deuterium Engine destroyed. 11440_ CA-LFC(R) knocked back. 11442_ Arm. Huge Wheel destroyed. 11444_ X0-1V1 guffaws! Map ----- +----------------------------------------------------+ | ????????????????????????????????????????? | | ????????????????????????????????????????? | | ????????????????????????????????????????? | | ?#######????????????????????????????????? | | ?# #????????????????????????????????? | | ?# ###??????????????????????????????? | | ?# ""#??????????????????????????????? | | ?# "#??????????????????????????????? | | ?# ""#??????????????????????????????? | | ?# ###??????????????????????????????? | | ?# #????????????????????????????????? | | ?# #????????????????????????????????? | | ?# #????????????????????????????????? | | ?# ######???????????????????????????? | | ?# #???????????????????????????? | | ?# #????????##########?######### | | ?# #????????# #?# | | ?# """ #????????# #?# """ """ | | ?# """ ##????????# #?# """ """ | | ?### """ #????????## #?# """ """ | | ???# ###??????# #?# | | #### ""#??????## #?# | | #""" """ T"#???????# #?######### | | #"T """ ""#####???# #?????????? | | #""" """ ###!!!##??# #????????## | | #### ###! @;########+######??????# | | ???# # #??????# | | ???# # % = #??????# | | ??##+##+##+# %R% %*#??????# | | ??# # ##;###;;####"Y"###??????# | | ??# # #?##???##??#"""#????????# | | ??# # #??????????#####????????# | | ??# # #######################?# | | ??# # #????????????????????????? | | ??# # #????????????????????????? | | ??# # #????????????????????????? | | ??# #! #????????????????????????? | | ??# [+ +????????????????????????? | | ??# # #????????????????????????? | | ??# ### #????????????????????????? | | ??# #?? #????????????????????????? | | ??# #?? #????????????????????????? | | ??# #??+#????????????????????????? | | ?# #????????????????????????????? | | ?## #????????????????????????????? | | ??# #????????????????????????????? | | ??# #????????????????????????????? | | ??##########????????????????????????????? | | ????????????????????????????????????????? | | ????????????????????????????????????????? | +----------------------------------------------------+ Best States ------------- Heat Dissipation 102 Energy Generation 25 Energy Capacity 1465 Matter Stores 300 Matter Capacity 300 Sight Range 19 Robot Scan Range 20 Terrain Scan Density 10 ECM Strength 1 Jamming Range 12 Armor Coverage 825 Evasion (%) 53 Recoil Reduction 4 Item Schematics ----------------- None Robot Schematics ------------------ M-13 Machinist | -10/Materials | Hacked Fabricated ------------ Nothing Repaired ---------- Nothing Studied --------- None Alien Tech Used ----------------- None Achievements -------------- None Challenges ------------ None Game ------ Seed BackupExpertGreatsword Manual? 0 Play Time 00:51:11 Cumulative 624.5 hours Start 2026.09.02 @ 18:00:44 End 2026.09.02 @ 18:51:36 Sessions 1 Manual Loads 0 Difficulty Rogue Special Mode None Game No. 326 Rogue 263 Adventurer 63 Explorer 0 Win Type - Total 13 Types 10/0/0/2/0/0/1/0/0/0 Lore% 91 Gallery% 80 Achievement% 59 Wizard Run 0 Options --------- Layout 1 ASCII 0 Keyboard 1 Movement Numpad Keybinds 0 Fullscreen 2 Font 24/Terminus Map View 50x35 Zoom Use 0% Tactical HUD 1 Map Filters NONE Filters NONE Steam 1 RUN: bda684f5-f538-4e58-be1b-b5dd594985bb